lending/lending_fUSD_20250917
["ID","MTS","AMOUNT","RATE_DAILY","PERIOD"]
[385912605,1758131485711,-652.72,0.00025134,2]
[385912606,1758131485722,-400.0,0.00025134,2]
[385912607,1758131485731,-400.0,0.00025134,2]
[385912608,1758131485741,-400.0,0.00025134,2]
[385912609,1758131485751,-441.69,0.00025134,2]
[385912610,1758131485761,-440.33,0.00025134,2]
[385912611,1758131485771,-218.77734069,0.00025134,2]
[385912612,1758131485780,-617.06,0.00025134,2]
[385912613,1758131485791,-400.0,0.00025134,2]
[385912614,1758131485800,-783.59,0.00025134,2]
[385912615,1758131485810,-400.0,0.00025134,2]
[385912616,1758131485819,-508.70413426,0.00025134,2]
[385912617,1758131485829,-400.0,0.00025134,2]
[385912618,1758131485838,-851.11,0.00025134,2]
[385912619,1758131485848,-529.36,0.00025134,2]
[385912620,1758131485858,-850.01,0.00025134,2]
[385912621,1758131485867,-415.92174486,0.00025134,2]
[385912622,1758131485876,-2019.89,0.00025134,2]
[385912623,1758131485886,-486.46729488,0.00025134,2]
[385912624,1758131485895,-610.69,0.00025134,2]
[385912625,1758131485904,-400.0,0.00025134,2]
[385912626,1758131485914,-879.71,0.00025134,2]
[385912627,1758131485923,-545.14195017,0.00025134,2]
[385912628,1758131485933,-400.0,0.00025134,2]
[385912629,1758131485942,-400.0,0.00025134,2]
[385912630,1758131485952,-400.0,0.00025134,2]
[385912631,1758131485962,-400.0,0.00025134,2]
[385912632,1758131485971,-1077.56,0.00025134,2]
[385912633,1758131485980,-1151.34,0.00025134,2]
[385912634,1758131485990,-563.26,0.00025134,2]
[385912635,1758131485999,-400.0,0.00025134,2]
[385912636,1758131486009,-662.04,0.00025134,2]
[385912637,1758131486018,-770.48,0.00025134,2]
[385912638,1758131486028,-575.67,0.00025134,2]
[385912639,1758131486038,-566.71,0.00025134,2]
[385912640,1758131486048,-858.88,0.00025134,2]
[385912641,1758131486058,-400.0,0.00025134,2]
[385912642,1758131486067,-408.73830753,0.00025134,2]
[385912643,1758131486078,-400.0,0.00025134,2]
[385912644,1758131486088,-400.0,0.00025134,2]
[385912645,1758131486098,-500.0,0.00025134,2]
[385912646,1758131486107,-500.0,0.00025135,2]
[385912647,1758131486117,-500.0,0.00025135,2]
[385912648,1758131486127,-400.0,0.00025135,2]
[385912649,1758131486137,-400.0,0.00025135,2]
[385912650,1758131486147,-400.0,0.00025135,2]
[385912651,1758131486162,-400.0,0.00025135,2]
[385912652,1758131486183,-400.0,0.00025135,2]
[385912653,1758131486200,-400.0,0.00025135,2]
[385912654,1758131486220,-400.0,0.00025135,2]
[385912655,1758131486238,-400.0,0.00025135,2]
[385912656,1758131486254,-400.0,0.00025135,2]
[385912657,1758131486273,-400.0,0.00025135,2]
[385912658,1758131486294,-400.0,0.00025135,2]
[385912659,1758131486313,-400.0,0.00025135,2]
[385912660,1758131486332,-400.0,0.00025135,2]
[385912661,1758131486351,-410.10266574,0.00025135,2]
[385912662,1758131486366,-229.86850107,0.00025135,2]
[385912663,1758131486380,-1177.74,0.00025135,2]
[385912664,1758131486399,-400.0,0.00025135,2]
[385912665,1758131486412,-400.0,0.00025135,2]
[385912666,1758131486430,-400.0,0.00025135,2]
[385912667,1758131486445,-400.0,0.00025135,2]
[385912668,1758131486460,-400.0,0.00025135,2]
[385912669,1758131486475,-400.0,0.00025135,2]
[385912670,1758131486490,-400.0,0.00025135,2]
[385912671,1758131486505,-400.0,0.00025135,2]
[385912672,1758131486521,-400.0,0.00025135,2]
[385912673,1758131486536,-400.0,0.00025135,2]
[385912674,1758131486550,-410.42927222,0.00025135,2]
[385912675,1758131486565,-400.0,0.00025135,2]
[385912676,1758131486581,-400.0,0.00025135,2]
[385912677,1758131486598,-525.93,0.00025135,2]
[385912678,1758131486612,-400.0,0.00025135,2]
[385912679,1758131486628,-406.03,0.00025135,2]
[385912680,1758131486643,-400.0,0.00025135,2]
[385912681,1758131486659,-599.36,0.00025135,2]
[385912682,1758131486676,-400.0,0.00025135,2]
[385912683,1758131486691,-406.431988,0.00025135,2]
[385912684,1758131486707,-400.0,0.00025135,2]
[385912685,1758131486721,-400.0,0.00025135,2]
[385912686,1758131486736,-400.0,0.00025135,2]
[385912687,1758131486751,-400.0,0.00025135,2]
[385912688,1758131486767,-400.0,0.00025135,2]
[385912689,1758131486781,-400.0,0.00025135,2]
[385912690,1758131486797,-400.0,0.00025135,2]
[385912691,1758131486812,-400.0,0.00025135,2]
[385912692,1758131486827,-400.0,0.00025135,2]
[385912693,1758131486842,-400.0,0.00025135,2]
[385912694,1758131486856,-400.0,0.00025135,2]
[385912695,1758131486871,-409.62400726,0.00025135,2]
[385912696,1758131486886,-400.0,0.00025135,2]
[385912697,1758131486901,-400.0,0.00025135,2]
[385912698,1758131486915,-400.0,0.00025135,2]
[385912699,1758131486929,-400.0,0.00025135,2]
[385912700,1758131486944,-400.0,0.00025135,2]
[385912701,1758131486959,-729.55,0.00025135,2]
[385912702,1758131486976,-412.22606037,0.00025135,2]
[385912703,1758131486992,-262.46073815,0.00025135,2]
[385912704,1758131487007,-408.29995569,0.00025135,2]
[385912705,1758131487023,-400.0,0.00025135,2]
[385912706,1758131487040,-409.20106423,0.00025135,2]
[385912707,1758131487055,-400.0,0.00025135,2]
[385912708,1758131487069,-400.0,0.00025135,2]
[385912709,1758131487084,-400.0,0.00025135,2]
[385912710,1758131487099,-615.12,0.00025135,2]
[385912711,1758131487113,-400.0,0.00025135,2]
[385912712,1758131487128,-400.0,0.00025135,2]
[385912713,1758131487143,-400.0,0.00025135,2]
[385912714,1758131487157,-400.0,0.00025135,2]
[385912715,1758131487172,-400.0,0.00025135,2]
[385912716,1758131487186,-400.0,0.00025135,2]
[385912717,1758131487200,-400.0,0.00025135,2]
[385912718,1758131487219,-400.0,0.00025135,2]
[385912719,1758131487234,-400.0,0.00025135,2]
[385912720,1758131487248,-1328.41,0.00025135,2]
[385912721,1758131487263,-400.0,0.00025135,2]
[385912722,1758131487278,-400.0,0.00025135,2]
[385912723,1758131487294,-400.0,0.00025135,2]
[385912724,1758131487308,-400.0,0.00025135,2]
[385912725,1758131487325,-400.0,0.00025135,2]
[385912726,1758131487339,-400.0,0.00025135,2]
[385912727,1758131487354,-400.0,0.00025135,2]
[385912728,1758131487370,-836.47,0.00025135,2]
[385912729,1758131487386,-400.0,0.00025135,2]
[385912730,1758131487401,-400.0,0.00025135,2]
[385912731,1758131487419,-400.0,0.00025135,2]
[385912732,1758131487435,-400.0,0.00025135,2]
[385912733,1758131487449,-400.0,0.00025135,2]
[385912734,1758131487465,-695.12,0.00025135,2]
[385912735,1758131487481,-556.99,0.00025135,2]
[385912736,1758131487497,-414.9134622,0.00025135,2]
[385912737,1758131487512,-400.0,0.00025135,2]
[385912738,1758131487528,-400.0,0.00025135,2]
[385912739,1758131487544,-400.0,0.00025135,2]
[385912740,1758131487559,-400.0,0.00025135,2]
[385912741,1758131487574,-400.0,0.00025135,2]
[385912742,1758131487590,-587.98,0.00025135,2]
[385912743,1758131487604,-671.85,0.00025135,2]
[385912744,1758131487619,-844.12,0.00025135,2]
[385912745,1758131487633,-466.78935412,0.00025135,2]
[385912746,1758131487648,-608.32,0.00025135,2]
[385912747,1758131487662,-400.0,0.00025135,2]
[385912748,1758131487677,-906.32,0.00025135,2]
[385912749,1758131487692,-410.30402563,0.00025135,2]
[385912750,1758131487707,-400.0,0.00025135,2]
[385912751,1758131487722,-400.0,0.00025135,2]
[385912752,1758131487737,-489.07,0.00025135,2]
[385912753,1758131487752,-400.0,0.00025135,2]
[385912754,1758131487768,-400.0,0.00025135,2]
[385912755,1758131487783,-400.0,0.00025135,2]
[385912756,1758131487802,-400.0,0.00025135,2]
[385912757,1758131487817,-400.0,0.00025135,2]
[385912758,1758131487832,-410.16524559,0.00025135,2]
[385912759,1758131487847,-400.0,0.00025135,2]
[385912760,1758131487862,-413.11764486,0.00025135,2]
[385912761,1758131487877,-2034.54,0.00025135,2]
[385912762,1758131487892,-400.0,0.00025135,2]
[385912763,1758131487907,-400.0,0.00025135,2]
[385912764,1758131487921,-436.53,0.00025135,2]
[385912765,1758131487936,-400.0,0.00025135,2]
[385912766,1758131487950,-400.0,0.00025135,2]
[385912767,1758131487966,-400.0,0.00025135,2]
[385912768,1758131487982,-400.0,0.00025135,2]
[385912769,1758131487997,-600.71,0.00025135,2]
[385912770,1758131488011,-929.04,0.00025135,2]
[385912771,1758131488025,-400.0,0.00025135,2]
[385912772,1758131488268,-400.0,0.00025135,2]
[385912773,1758131488295,-400.0,0.00025135,2]
[385912774,1758131488304,-400.0,0.00025135,2]
[385912775,1758131488313,-518.72647945,0.00025135,2]
[385912776,1758131488322,-400.0,0.00025135,2]
[385912777,1758131488332,-789.08,0.00025135,2]
[385912778,1758131488342,-400.0,0.00025135,2]
[385912779,1758131488351,-400.0,0.00025135,2]
[385912780,1758131488361,-400.0,0.00025135,2]
[385912781,1758131488370,-400.0,0.00025135,2]
[385912782,1758131488380,-586.41,0.00025135,2]
[385912783,1758131488389,-973.91,0.00025135,2]
[385912784,1758131488398,-400.0,0.00025135,2]
[385912785,1758131488407,-400.0,0.00025135,2]
[385912786,1758131488417,-400.0,0.00025135,2]
[385912787,1758131488426,-488.2,0.00025135,2]
[385912788,1758131488435,-400.0,0.00025135,2]
[385912789,1758131488444,-400.0,0.00025135,2]
[385912790,1758131488453,-413.37317067,0.00025135,2]
[385912791,1758131488463,-811.5,0.00025135,2]
[385912792,1758131488472,-561.36,0.00025135,2]
[385912793,1758131488481,-400.0,0.00025135,2]
[385912794,1758131488490,-400.0,0.00025135,2]
[385912795,1758131488499,-400.0,0.00025135,2]
[385912796,1758131488509,-531.26023194,0.00025135,2]
[385912797,1758131488518,-400.0,0.00025135,2]
[385912798,1758131488527,-400.0,0.00025135,2]
[385912799,1758131488536,-514.08,0.00025135,2]
[385912800,1758131488547,-400.0,0.00025135,2]
[385912801,1758131488557,-500.97,0.00025135,2]
[385912802,1758131488566,-440.9,0.00025135,2]
[385912803,1758131488575,-424.33,0.00025135,2]
[385912804,1758131488584,-605.89,0.00025135,2]
[385912805,1758131488594,-400.0,0.00025135,2]
[385912806,1758131488603,-325.9094528,0.00025135,2]
[385912807,1758131488612,-400.0,0.00025135,2]
[385912808,1758131488621,-400.0,0.00025135,2]
[385912809,1758131488631,-552.42,0.00025135,2]
[385912810,1758131488640,-400.0,0.00025135,2]
[385912811,1758131488649,-420.72692129,0.00025135,2]
[385912812,1758131488658,-400.0,0.00025135,2]
[385912813,1758131488668,-670.68,0.00025135,2]
[385912814,1758131488678,-400.0,0.00025135,2]
[385912815,1758131488688,-400.0,0.00025135,2]
[385912816,1758131488697,-400.0,0.00025135,2]
[385912817,1758131488707,-400.0,0.00025135,2]
[385912818,1758131488716,-543.04,0.00025135,2]
[385912819,1758131488726,-420.40464754,0.00025135,2]
[385912820,1758131488735,-537.33,0.00025135,2]
[385912821,1758131488745,-443.28,0.00025135,2]
[385912822,1758131488754,-400.0,0.00025135,2]
[385912823,1758131488763,-407.15,0.00025135,2]
[385912824,1758131488772,-400.0,0.00025135,2]
[385912825,1758131488781,-400.0,0.00025135,2]
[385912826,1758131488792,-464.27,0.00025135,2]
[385912827,1758131488801,-956.81,0.00025135,2]
[385912828,1758131488811,-400.0,0.00025135,2]
[385912829,1758131488820,-400.0,0.00025135,2]
[385912830,1758131488830,-532.35,0.00025135,2]
[385912831,1758131488840,-400.0,0.00025135,2]
[385912832,1758131488849,-400.0,0.00025135,2]
[385912833,1758131488858,-400.0,0.00025135,2]
[385912834,1758131488867,-419.76116926,0.00025135,2]
[385912835,1758131488877,-400.0,0.00025135,2]
[385912836,1758131488887,-400.0,0.00025135,2]
[385912837,1758131488896,-511.73,0.00025135,2]
[385912838,1758131488906,-400.0,0.00025135,2]
[385912839,1758131488915,-635.73,0.00025135,2]
[385912840,1758131488924,-400.0,0.00025135,2]
[385912841,1758131488933,-308.57695341,0.00025135,2]
[385912842,1758131488943,-407.93,0.00025135,2]
[385912843,1758131488952,-400.0,0.00025135,2]
[385912844,1758131488961,-440.8,0.00025135,2]
[385912845,1758131488971,-400.0,0.00025135,2]
[385912846,1758131488982,-530.97,0.00025135,2]
[385912847,1758131488991,-400.0,0.00025135,2]
[385912848,1758131489000,-400.0,0.00025135,2]
[385912849,1758131489009,-459.41,0.00025135,2]
[385912850,1758131489020,-400.0,0.00025135,2]
[385912851,1758131489029,-400.0,0.00025135,2]
[385912852,1758131489039,-400.0,0.00025135,2]
[385912853,1758131489050,-400.0,0.00025135,2]
[385912854,1758131489060,-400.0,0.00025135,2]
[385912855,1758131489069,-400.0,0.00025135,2]
[385912856,1758131489078,-400.0,0.00025135,2]
[385912857,1758131489087,-536.31,0.00025135,2]
[385912858,1758131489097,-400.0,0.00025135,2]
[385912859,1758131489106,-400.0,0.00025135,2]
[385912860,1758131489115,-400.0,0.00025135,2]
[385912861,1758131489124,-474.95,0.00025135,2]
[385912862,1758131489133,-539.34,0.00025135,2]
[385912863,1758131489142,-673.93,0.00025135,2]
[385912864,1758131489151,-400.0,0.00025135,2]
[385912865,1758131489160,-537.69,0.00025135,2]
[385912866,1758131489169,-369.61708603,0.00025135,2]
[385912867,1758131489178,-400.0,0.00025135,2]
[385912868,1758131489187,-400.0,0.00025135,2]
[385912869,1758131489197,-400.0,0.00025135,2]
[385912870,1758131489208,-613.04,0.00025135,2]
[385912871,1758131489217,-295.6207327,0.00025135,2]
[385912872,1758131489226,-400.0,0.00025135,2]
[385912873,1758131489236,-400.0,0.00025135,2]
[385912874,1758131489245,-400.0,0.00025135,2]
[385912875,1758131489254,-612.89,0.00025135,2]
[385912876,1758131489265,-458.12,0.00025135,2]
[385912877,1758131489274,-400.0,0.00025135,2]
[385912878,1758131489283,-506.5,0.00025135,2]
[385912879,1758131489293,-400.0,0.00025135,2]
[385912880,1758131489302,-400.0,0.00025135,2]
[385912881,1758131489311,-400.0,0.00025135,2]
[385912882,1758131489321,-400.0,0.00025135,2]
[385912883,1758131489330,-400.0,0.00025135,2]
[385912884,1758131489339,-444.54,0.00025135,2]
[385912885,1758131489348,-331.3208238,0.00025135,2]
[385912886,1758131489358,-400.0,0.00025135,2]
[385912887,1758131489368,-400.0,0.00025135,2]
[385912888,1758131489378,-400.0,0.00025135,2]
[385912889,1758131489387,-400.0,0.00025135,2]
[385912890,1758131489397,-518.06,0.00025135,2]
[385912891,1758131489406,-400.0,0.00025135,2]
[385912892,1758131489415,-300.0,0.00025135,2]
[385912893,1758131489424,-400.0,0.00025135,2]
[385912894,1758131489434,-449.17,0.00025135,2]
[385912895,1758131489443,-474.13,0.00025135,2]
[385912896,1758131489453,-400.0,0.00025135,2]
[385912897,1758131489462,-400.0,0.00025135,2]
[385912898,1758131489471,-400.0,0.00025135,2]
[385912899,1758131489480,-692.35,0.00025135,2]
[385912900,1758131489489,-400.0,0.00025135,2]
[385912901,1758131489498,-400.0,0.00025135,2]
[385912902,1758131489507,-400.0,0.00025135,2]
[385912903,1758131489517,-592.72,0.00025135,2]
[385912904,1758131489526,-443.07,0.00025135,2]
[385912905,1758131489536,-413.29,0.00025135,2]
[385912906,1758131489546,-452.64,0.00025135,2]
[385912907,1758131489555,-400.0,0.00025135,2]
[385912908,1758131489564,-400.0,0.00025135,2]
[385912909,1758131489574,-400.0,0.00025135,2]
[385912910,1758131489585,-400.0,0.00025135,2]
[385912911,1758131489597,-400.0,0.00025135,2]
[385912912,1758131489608,-400.65,0.00025135,2]
[385912913,1758131489618,-400.0,0.00025135,2]
[385912914,1758131489627,-400.0,0.00025135,2]
[385912915,1758131489637,-465.73,0.00025135,2]
[385912916,1758131489648,-464.32,0.00025135,2]
[385912917,1758131489658,-400.0,0.00025135,2]
[385912918,1758131489668,-949.62,0.00025135,2]
[385912919,1758131489679,-400.0,0.00025135,2]
[385912920,1758131489689,-1749.72492586,0.00025143,2]
[385912921,1758131489698,-500.0,0.00025173,2]
[385912922,1758131489707,-500.0,0.00025173,2]
[385912923,1758131489716,-200.0,0.00025196,2]
[385912924,1758131489725,-200.0,0.00025196,2]
[385912925,1758131489734,-5557.06356995,0.00025202,2]
[385912926,1758131489743,-500.0,0.00025203,2]
[385912927,1758131489753,-500.0,0.00025203,2]
[385912928,1758131489763,-311.46388084,0.00025203,2]
[385912929,1758131489773,-757.05,0.00025204,2]
[385912930,1758131489784,-545.77,0.00025204,2]
[385912931,1758131489793,-519.92,0.00025204,2]
[385912932,1758131489803,-400.0,0.00025204,2]
[385912933,1758131489813,-400.0,0.00025204,2]
[385912934,1758131489822,-400.0,0.00025204,2]
[385912935,1758131489832,-400.0,0.00025204,2]
[385912936,1758131489842,-631.68,0.00025204,2]
[385912937,1758131489851,-400.0,0.00025204,2]
[385912938,1758131489861,-400.0,0.00025204,2]
[385912939,1758131489870,-406.64586762,0.00025204,2]
[385912940,1758131489880,-442.6,0.00025204,2]
[385912941,1758131489890,-400.0,0.00025204,2]
[385912942,1758131489899,-400.0,0.00025204,2]
[385912943,1758131489908,-400.0,0.00025204,2]
[385912944,1758131489917,-400.0,0.00025204,2]
[385912945,1758131489927,-400.0,0.00025204,2]
[385912946,1758131489937,-400.0,0.00025204,2]
[385912947,1758131489946,-400.0,0.00025204,2]
[385912948,1758131489955,-400.0,0.00025204,2]
[385912949,1758131489965,-400.0,0.00025204,2]
[385912950,1758131489975,-400.0,0.00025204,2]
[385912951,1758131489984,-400.0,0.00025204,2]
[385912952,1758131489994,-400.0,0.00025204,2]
[385912953,1758131490003,-400.0,0.00025204,2]
[385912954,1758131490013,-400.0,0.00025204,2]
[385912955,1758131490022,-400.0,0.00025204,2]
[385912956,1758131490031,-400.0,0.00025204,2]
[385912957,1758131490041,-400.0,0.00025204,2]
[385912958,1758131490053,-400.0,0.00025204,2]
[385912959,1758131490062,-400.0,0.00025204,2]
[385912960,1758131490071,-400.0,0.00025204,2]
[385912961,1758131490081,-400.0,0.00025204,2]
[385912962,1758131490090,-400.0,0.00025204,2]
[385912963,1758131490099,-400.0,0.00025204,2]
[385912964,1758131490109,-400.0,0.00025204,2]
[385912965,1758131490119,-400.0,0.00025204,2]
[385912966,1758131490128,-407.21289899,0.00025204,2]
[385912967,1758131490138,-400.0,0.00025204,2]
[385912968,1758131490147,-400.0,0.00025204,2]
[385912969,1758131490156,-400.0,0.00025204,2]
[385912970,1758131490166,-405.93398814,0.00025204,2]
[385912971,1758131490175,-400.0,0.00025204,2]
[385912972,1758131490185,-400.0,0.00025204,2]
[385912973,1758131490194,-400.0,0.00025204,2]
[385912974,1758131490203,-400.0,0.00025204,2]
[385912975,1758131490213,-400.0,0.00025204,2]
[385912976,1758131490223,-400.0,0.00025204,2]
[385912977,1758131490232,-400.0,0.00025204,2]
[385912978,1758131490241,-409.02116897,0.00025204,2]
[385912979,1758131490250,-400.0,0.00025204,2]
[385912980,1758131490259,-400.0,0.00025204,2]
[385912981,1758131490269,-400.0,0.00025204,2]
[385912982,1758131490278,-400.0,0.00025204,2]
[385912983,1758131490287,-400.0,0.00025204,2]
[385912984,1758131490298,-400.0,0.00025204,2]
[385912985,1758131490307,-400.0,0.00025204,2]
[385912986,1758131490316,-400.0,0.00025204,2]
[385912987,1758131490326,-400.0,0.00025204,2]
[385912988,1758131490335,-400.0,0.00025204,2]
[385912989,1758131490345,-406.70598722,0.00025204,2]
[385912990,1758131490354,-400.0,0.00025204,2]
[385912991,1758131490363,-400.0,0.00025204,2]
[385912992,1758131490373,-400.0,0.00025204,2]
[385912993,1758131490382,-489.71,0.00025204,2]
[385912994,1758131490392,-400.0,0.00025204,2]
[385912995,1758131490402,-511.57768729,0.00025204,2]
[385912996,1758131490412,-400.0,0.00025204,2]
[385912997,1758131490422,-400.0,0.00025204,2]
[385912998,1758131490434,-400.0,0.00025204,2]
[385912999,1758131490443,-400.0,0.00025204,2]
[385913000,1758131490452,-400.0,0.00025204,2]
[385913001,1758131490462,-400.0,0.00025204,2]
[385913002,1758131490471,-400.0,0.00025204,2]
[385913003,1758131490480,-400.0,0.00025204,2]
[385913004,1758131490490,-400.0,0.00025204,2]
[385913005,1758131490499,-400.0,0.00025204,2]
[385913006,1758131490509,-400.0,0.00025204,2]
[385913007,1758131490518,-400.0,0.00025204,2]
[385913008,1758131490527,-400.0,0.00025204,2]
[385913009,1758131490537,-400.0,0.00025204,2]
[385913010,1758131490547,-465.4948632,0.00025204,2]
[385913011,1758131490557,-400.0,0.00025204,2]
[385913012,1758131490567,-400.0,0.00025204,2]
[385913013,1758131490576,-400.0,0.00025204,2]
[385913014,1758131490585,-400.0,0.00025204,2]
[385913015,1758131490595,-400.0,0.00025204,2]
[385913016,1758131490604,-563.17,0.00025204,2]
[385913017,1758131490615,-400.0,0.00025204,2]
[385913018,1758131490625,-940.33,0.00025204,2]
[385913019,1758131490634,-400.0,0.00025204,2]
[385913020,1758131490644,-400.0,0.00025204,2]
[385913021,1758131490653,-400.0,0.00025204,2]
[385913022,1758131490664,-400.0,0.00025204,2]
[385913023,1758131490674,-400.0,0.00025204,2]
[385913024,1758131490683,-400.0,0.00025204,2]
[385913025,1758131490697,-400.0,0.00025204,2]
[385913026,1758131490706,-400.0,0.00025204,2]
[385913027,1758131490717,-400.0,0.00025204,2]
[385913028,1758131490728,-400.0,0.00025204,2]
[385913029,1758131490737,-400.0,0.00025204,2]
[385913030,1758131490747,-400.0,0.00025204,2]
[385913031,1758131490756,-400.0,0.00025204,2]
[385913032,1758131490766,-400.0,0.00025204,2]
[385913033,1758131490776,-400.0,0.00025204,2]
[385913034,1758131490786,-400.0,0.00025204,2]
[385913035,1758131490796,-400.0,0.00025204,2]
[385913036,1758131490806,-400.0,0.00025204,2]
[385913037,1758131490817,-500.0,0.00025206,2]
[385913038,1758131490828,-1035.84,0.00025213,2]
[385913039,1758131490838,-2077.5,0.00025213,2]
[385913040,1758131490848,-1000.0,0.00025213,2]
[385913041,1758131490857,-1360.36,0.00025213,2]
[385913042,1758131490867,-400.0,0.00025213,2]
[385913043,1758131490878,-1112.0,0.00025213,2]
[385913044,1758131490889,-680.54,0.00025213,2]
[385913045,1758131490907,-2950.65,0.00025213,2]
[385913046,1758131490917,-400.0,0.00025213,2]
[385913047,1758131490927,-937.21,0.00025213,2]
[385913048,1758131490937,-823.68,0.00025213,2]
[385913049,1758131490947,-1071.56,0.00025213,2]
[385913050,1758131490957,-400.0,0.00025213,2]
[385913051,1758131490971,-1146.0,0.00025213,2]
[385913052,1758131490986,-887.5,0.00025213,2]
[385913053,1758131490998,-437.52,0.00025213,2]
[385913054,1758131491008,-466.25,0.00025213,2]
[385913055,1758131491019,-213.18994792,0.00025217,2]
[385913056,1758131491029,-500.0,0.00025222,2]
[385913057,1758131491039,-2406.73,0.00025222,2]
[385913058,1758131491051,-160.0,0.00025223,2]
[385913059,1758131491062,-160.0,0.00025223,2]
[385913060,1758131491072,-160.0,0.00025223,2]
[385913061,1758131491082,-1002.32,0.00025223,2]
[385913062,1758131491092,-1002.32,0.00025223,2]
[385913063,1758131491102,-274.33097763,0.00025223,2]
[385913064,1758131491112,-4624.33,0.00025223,2]
[385913065,1758131491122,-500.0,0.00025223,2]
[385913066,1758131491132,-500.0,0.00025223,2]
[385913067,1758131491142,-500.0,0.00025233,2]
[385913068,1758131491152,-1002.32,0.00025234,2]
[385913069,1758131491162,-460.01,0.00025238,2]
[385913070,1758131491172,-277.12198228,0.00025298,2]
[385913071,1758131491391,-153.16,0.00025324,2]
[385913072,1758131491402,-489.37,0.00025386,2]
[385913073,1758131491412,-289.243169,0.00025386,2]
[385913074,1758131491422,-198.362773,0.00025386,2]
[385913075,1758131491431,-584.85,0.00025386,2]
[385913076,1758131491441,-400.0,0.00025386,2]
[385913077,1758131491451,-569.4,0.00025386,2]
[385913078,1758131491460,-2444.1,0.00025386,2]
[385913079,1758131491470,-400.0,0.00025386,2]
[385913080,1758131491480,-571.13,0.00025386,2]
[385913081,1758131491489,-574.63,0.00025386,2]
[385913082,1758131491498,-453.12,0.00025386,2]
[385913083,1758131491508,-696.41,0.00025386,2]
[385913084,1758131491518,-1567.04,0.00025386,2]
[385913085,1758131491527,-908.05,0.00025386,2]
[385913086,1758131491536,-486.03,0.00025386,2]
[385913087,1758131491547,-611.17,0.00025386,2]
[385913088,1758131491556,-487.0,0.00025386,2]
[385913089,1758131491566,-1065.47,0.00025386,2]
[385913090,1758131491576,-408.57039303,0.00025386,2]
[385913091,1758131491586,-751.64,0.00025386,2]
[385913092,1758131491595,-14812.96,0.00025386,2]
[385913093,1758131491605,-995.91,0.00025386,2]
[385913094,1758131491615,-923.1,0.00025386,2]
[385913095,1758131491625,-403.2,0.00025386,2]
[385913096,1758131491635,-699.46,0.00025386,2]
[385913097,1758131491645,-2176.27,0.00025386,2]
[385913098,1758131491657,-1126.89,0.00025386,2]
[385913099,1758131491667,-2761.17,0.00025386,2]
[385913100,1758131491677,-400.0,0.00025386,2]
[385913101,1758131491687,-1077.38,0.00025386,2]
[385913102,1758131491697,-810.57,0.00025386,2]
[385913103,1758131491708,-400.0,0.00025386,2]
[385913104,1758131491719,-2677.29,0.00025386,2]